bitfinex-derivatives/quotes_ETHF0:USTF0_20250212
["timestamp","ask_amount","ask_price","bid_price","bid_amount"]
[1739384608514,0.75235,2658.3,2658.2,0.75233]
[1739384608812,0.75235,2658.3,2658.2,0.80378317]
[1739384609609,0.5826,2658.4,2658.3,0.75232]
[1739384610420,1.33489,2658.4,2658.3,0.75232]
[1739384610908,1.33489,2658.4,2658.3,0.80377317]
[1739384611210,0.75229,2658.4,2658.3,0.80377317]
[1739384611423,0.75229,2658.4,2658.3,0.83391894]
[1739384612714,1.31078,2658.5,2658.4,0.75229]
[1739384613618,1.31078,2658.5,2658.4,0.83388894]
[1739384614012,0.5585,2658.5,2658.4,0.83388894]
[1739384614318,1.31076,2658.5,2658.4,0.83388894]
[1739384616205,0.5606,2658.6,2658.4,0.08159894]
[1739384616413,2.55121,2658.7,2658.6,0.75224]
[1739384616618,2.55121,2658.7,2658.6,0.83383894]
[1739384617511,2.55121,2658.7,2658.6,0.08159894]
[1739384617712,2.55121,2658.7,2658.6,0.83383894]
[1739384620317,2.55121,2658.7,2658.3,1.88078]
[1739384620318,8.984,2658.7,2657.5,3.2078]
[1739384620512,6.54607316,2657.8,2656.8,3.8104]
[1739384620713,0.75267,2657.1,2656.8,3.8104]
[1739384620912,1.798,2657.2,2656.8,0.6026]
[1739384621215,0.75271,2657.0,2656.8,1.35534]
[1739384621413,0.6022,2657.1,2656.8,1.35534]
[1739384621614,0.6022,2657.1,2656.8,0.6026]
[1739384621918,0.75267,2657.1,2656.9,0.7527]
[1739384622121,0.75272,2657.0,2656.7,3.96056]
[1739384622313,0.75272,2656.9,2656.7,3.96056]
[1739384622521,1.798,2657.2,2656.7,3.2078]
[1739384622721,0.7527,2657.0,2656.7,3.96057]
[1739384622920,0.7527,2657.0,2656.7,0.75277]
[1739384623122,0.75272,2656.9,2656.7,0.75277]
[1739384623415,0.5897,2657.1,2656.6,0.75279]
[1739384623622,0.75277,2656.7,2656.4,6.54607316]
[1739384623812,2.55177,2656.7,2656.4,3.2078]
[1739384624013,1.799,2656.7,2656.4,3.2078]
[1739384624214,1.799,2656.7,2656.1,7.85320316]
[1739384624215,0.5798,2656.6,2656.1,7.85320316]
[1739384624420,0.5735,2656.5,2656.1,7.10027316]
[1739384625122,0.75289,2656.3,2656.1,7.10027316]
[1739384625715,0.5735,2656.5,2656.1,7.10027316]
[1739384625915,0.5798,2656.6,2656.1,7.10027316]
[1739384626111,3.13162,2656.6,2656.3,0.75288]
[1739384626616,0.75282,2656.6,2656.4,3.2078]
[1739384626926,2.55179,2656.7,2656.4,7.29890316]
[1739384627125,0.75282,2656.6,2656.4,3.33827316]
[1739384627523,0.75273,2656.9,2656.6,0.7528]
[1739384627719,1.799,2656.9,2656.7,0.75277]
[1739384627919,1.799,2656.9,2656.5,3.8117]
[1739384627920,2.55173,2656.9,2656.5,0.6039]
[1739384628417,1.799,2656.9,2656.7,3.96055]
[1739384628721,2.55172,2656.9,2656.7,3.96055]
[1739384628925,1.799,2656.9,2656.7,3.2078]
[1739384629121,1.799,2656.9,2656.8,0.75275]
[1739384629521,0.75271,2657.0,2656.7,3.2078]
[1739384629729,3.2078,2657.2,2656.9,0.75269]
[1739384629730,0.75268,2657.1,2656.9,0.75269]
[1739384630121,5.75946,2657.2,2656.7,3.2078]
[1739384630321,0.75266,2657.1,2657.0,0.75269]
[1739384630818,5.0068,2657.2,2657.0,0.75269]
[1739384630819,5.75945,2657.2,2657.0,0.75269]
[1739384631217,5.0068,2657.2,2657.0,0.75269]
[1739384631420,0.75268,2657.1,2656.9,0.75271]
[1739384631818,5.0068,2657.2,2656.7,3.2078]
[1739384632224,0.7527,2657.0,2656.8,0.75273]
[1739384632426,0.75271,2657.0,2656.7,3.2078]
[1739384632625,0.75271,2657.0,2656.9,0.75272]
[1739384632930,0.7527,2657.0,2656.9,0.7527]
[1739384633224,5.0068,2657.2,2656.9,0.7527]
[1739384633431,0.75268,2657.1,2656.9,0.7527]
[1739384633630,0.75268,2657.1,2657.0,0.75269]
[1739384634530,5.0068,2657.2,2656.4,8.42818316]
[1739384634737,0.75274,2656.9,2656.8,0.75274]
[1739384635032,0.75275,2656.8,2656.7,0.75275]
[1739384635727,0.75274,2656.9,2656.8,0.75273]
[1739384636623,0.75277,2656.8,2656.7,0.75275]
[1739384637233,0.75274,2656.9,2656.8,0.75272]
[1739384637529,1.799,2656.9,2656.8,0.75272]
[1739384637723,0.75269,2657.0,2656.7,6.54607316]
[1739384637926,0.75268,2657.1,2657.0,0.75267]
[1739384639827,2.55166,2657.2,2657.1,0.75266]
[1739384640330,1.799,2657.2,2656.7,8.42799316]
[1739384640532,0.75268,2657.1,2657.0,0.75266]
[1739384642933,0.75272,2657.0,2656.9,0.75269]
[1739384643234,1.88086,2658.3,2656.9,5.6454]
[1739384643428,1.88086,2658.3,2657.5,7.29862316]
[1739384643429,1.7231,2658.1,2657.5,7.29862316]
[1739384643927,0.75815444,2657.6,2657.5,3.96035]
[1739384644129,0.00563444,2657.6,2657.5,3.96035]
[1739384644933,0.75815444,2657.6,2657.5,3.96035]
[1739384645433,1.36285444,2657.6,2657.5,3.2078]
[1739384645635,1.36285444,2657.6,2657.1,0.5973]
[1739384645636,0.61033444,2657.6,2657.1,0.5973]
[1739384645933,1.1169,2657.5,2656.9,6.54607316]
[1739384646134,5.08925,2657.4,2656.7,0.5886]
[1739384646340,0.75275,2656.8,2656.7,1.34135]
[1739384647138,0.75273,2656.9,2656.8,0.75274]
[1739384647532,0.6047,2657.1,2656.7,0.5886]
[1739384647835,0.6047,2657.1,2656.8,0.75275]
[1739384648035,0.75272,2656.9,2656.8,0.75275]
[1739384648533,0.75271,2657.0,2656.8,0.75275]
[1739384648734,0.75271,2657.0,2656.7,0.5886]
[1739384648924,0.75271,2657.0,2656.9,0.75272]
[1739384649533,1.35738,2657.1,2657.0,0.75269]
[1739384649835,0.6047,2657.1,2657.0,0.75269]
[1739384650233,1.35736,2657.1,2657.0,0.75269]
[1739384652030,0.6047,2657.1,2657.0,0.75269]
[1739384652230,1.35736,2657.1,2657.0,0.75269]
[1739384652431,1.35736,2657.1,2654.9,41.80521]
[1739384652432,24.33677316,2657.1,2656.3,1.386]
[1739384652629,3.33827316,2656.4,2655.0,5.0909]
[1739384652829,0.75313,2655.5,2655.1,0.5987]
[1739384653035,0.75318,2655.3,2655.0,3.2078]
[1739384653235,0.75317,2655.3,2655.0,3.2078]
[1739384653537,3.2078,2655.1,2654.6,0.75337]
[1739384653738,0.7533,2654.9,2654.6,0.75337]
[1739384654134,1.799,2655.0,2654.5,3.96118]
[1739384654438,1.799,2655.0,2654.6,0.75337]
[1739384654439,2.55228,2655.0,2654.6,0.75337]
[1739384654628,1.799,2655.0,2654.5,3.2078]
[1739384654831,1.799,2655.0,2654.7,0.75332]
[1739384655236,1.799,2655.1,2654.8,3.2078]
[1739384655634,1.799,2655.1,2654.8,0.75329]
[1739384655837,2.55225,2655.1,2654.8,0.75329]
[1739384656245,0.75326,2655.0,2654.5,3.2078]
[1739384656736,0.75326,2655.0,2654.7,0.75334]
[1739384657243,1.799,2655.0,2654.7,0.75334]
[1739384658135,1.799,2655.0,2654.5,3.2078]
[1739384658337,1.799,2655.0,2654.8,0.75329]
[1739384658537,1.799,2655.0,2654.9,0.75328]
[1739384658736,1.799,2655.0,2654.5,3.2078]
[1739384658933,3.2078,2655.4,2654.8,3.2078]
[1739384659136,0.00564557,2655.6,2655.1,3.2078]
[1739384659345,0.00564557,2655.6,2655.5,0.75311]
[1739384659942,0.75312,2655.5,2655.3,0.75315]
[1739384660148,0.00564557,2655.6,2655.1,3.2078]
[1739384660349,0.7532,2655.2,2655.0,0.75324]
[1739384660546,0.75319,2655.3,2654.8,3.2078]
[1739384660746,0.7532,2655.2,2655.0,0.75324]
[1739384661342,0.75318,2655.3,2655.1,0.75322]
[1739384661645,0.7532,2655.3,2655.1,0.75322]
[1739384661843,0.7532,2655.2,2655.1,0.75322]
[1739384662450,3.2078,2655.2,2654.5,3.2078]
[1739384662643,3.2078,2655.2,2654.8,0.7533]
[1739384663043,0.75327,2655.0,2654.9,0.75328]
[1739384663242,2.55227,2655.0,2654.9,0.75328]
[1739384663748,2.55227,2655.0,2654.5,3.2078]
[1739384663950,1.799,2655.0,2654.9,0.75328]
[1739384664153,0.5566,2655.4,2654.9,3.2078]
[1739384664446,5.0068,2655.5,2655.0,0.5799]
[1739384664844,3.2078,2655.5,2655.4,0.75314]
[1739384665047,0.00564557,2655.6,2655.5,0.75311]
[1739384668846,0.00564557,2655.6,2655.3,0.5814]
[1739384668847,0.75317,2655.3,2655.2,3.2078]
[1739384669047,0.75317,2655.3,2655.2,3.96099]
[1739384669747,0.75317,2655.4,2655.3,0.75316]
[1739384670052,0.75317,2655.3,2655.2,3.96099]
[1739384670247,0.75321,2655.2,2655.1,0.75321]
[1739384670447,3.2078,2655.3,2655.0,0.00315179]
[1739384670756,0.75323,2655.1,2655.0,0.00315179]
[1739384671952,5.76003,2655.1,2655.0,0.00315179]
[1739384673452,2.55223,2655.1,2655.0,0.00315179]
[1739384673650,5.76003,2655.1,2655.0,0.00315179]
[1739384676451,0.00564557,2655.6,2655.0,3.21095179]
[1739384676758,0.00564557,2655.6,2655.5,0.75311]
[1739384678757,0.75873557,2655.6,2655.5,0.75311]
[1739384678953,0.75322,2655.2,2655.1,0.75322]
[1739384679159,1.799,2655.2,2655.0,0.00315179]
[1739384679549,0.75323,2655.1,2655.0,0.75638179]
[1739384679853,2.55221,2655.2,2655.1,0.75323]
[1739384680057,1.799,2655.2,2655.1,0.75323]
[1739384680255,2.5522,2655.2,2655.1,0.75323]
[1739384680556,3.2078,2655.4,2655.3,0.75317]
[1739384681353,0.00564557,2655.6,2655.5,0.75311]
[1739384684855,0.00564557,2655.6,2655.5,3.96091]
[1739384685261,0.5999,2656.2,2655.5,3.2078]
[1739384685448,2.3989,2656.2,2656.1,0.75294]
[1739384686057,2.3989,2656.2,2655.8,0.6026]
[1739384686260,0.75296,2656.1,2656.0,0.75294]
[1739384686452,3.15182,2656.2,2656.1,0.75294]
[1739384686649,1.799,2656.2,2656.1,0.75294]
[1739384687457,0.00564557,2656.3,2656.2,0.75292]
[1739384687757,0.75853557,2656.3,2656.2,0.75292]
[1739384687960,0.00564557,2656.3,2656.2,0.75292]
[1739384697864,0.75294,2656.2,2656.1,0.75292]
[1739384698059,1.34784,2656.2,2656.1,0.75292]
[1739384698265,0.5949,2656.2,2655.7,3.2078]
[1739384698464,0.753,2656.0,2655.9,0.75298]
[1739384699264,0.75302,2655.9,2655.8,0.75301]
[1739384699862,3.2078,2656.0,2655.5,0.5637]
[1739384700062,0.75309,2655.7,2655.6,0.75307]
[1739384700265,0.75304,2655.8,2655.7,0.75304]
[1739384701059,0.75303,2655.9,2655.8,0.75301]
[1739384701256,3.96079,2656.0,2655.9,0.753]
[1739384701463,3.2078,2656.0,2655.6,0.5865]
[1739384701657,0.75305,2655.8,2655.7,0.75304]
[1739384701860,0.7531,2655.6,2655.5,0.75309]
[1739384702569,3.2078,2656.0,2655.4,3.2078]
[1739384702769,0.75302,2655.9,2655.8,0.75301]
[1739384703069,3.2078,2656.0,2655.9,0.753]
[1739384703564,0.5949,2656.2,2656.1,0.75294]
[1739384703970,0.00564557,2656.3,2656.2,0.75292]
[1739384707264,0.00564557,2656.3,2656.2,1.34352]
[1739384709168,1.799,2657.0,2656.9,0.7527]
[1739384709169,0.75269,2657.0,2656.9,0.7527]
[1739384709366,0.75269,2657.0,2656.3,1.88222]
[1739384709367,5.08627,2657.1,2657.0,0.75269]
[1739384709571,1.1258,2657.1,2657.0,0.75269]
[1739384709767,0.5524,2657.1,2657.0,4.09843037]
[1739384711172,0.5524,2657.1,2657.0,7.30623037]
[1739384711373,0.00564557,2657.3,2657.2,0.75263]
[1739384712068,1.12908456,2657.9,2657.2,0.75263]
[1739384712069,0.37664456,2657.9,2657.2,6.75263]
[1739384712268,0.37664456,2657.9,2657.8,0.75246]
[1739384712566,0.6024,2658.2,2658.1,0.75238]
[1739384713168,1.798,2658.3,2658.2,0.75235]
[1739384713474,0.00564557,2658.4,2658.1,3.34574037]
[1739384713671,0.00564557,2658.4,2658.3,0.75232]
[1739384716277,3.2078,2658.6,2658.5,0.75226]
[1739384717177,3.96005,2658.6,2658.4,0.75228]
[1739384717670,3.2078,2658.6,2658.3,0.00564557]
[1739384717873,3.2078,2658.6,2658.5,0.75226]
[1739384718780,3.96004,2658.6,2658.5,0.75226]
[1739384719180,3.2078,2658.6,2658.5,0.75226]
[1739384719480,3.96004,2658.6,2658.5,0.75226]
[1739384719689,3.2078,2658.6,2658.5,0.75226]
[1739384720471,3.2078,2658.6,2658.3,0.00564557]
[1739384720682,0.75229,2658.4,2658.3,0.00564557]
[1739384721279,0.75229,2658.4,2658.3,0.75796557]
[1739384722082,1.1977,2658.5,2658.3,0.00564557]
[1739384722282,1.94998,2658.5,2658.4,0.75229]
[1739384722474,0.75229,2658.4,2658.3,0.75794557]
[1739384723177,1.1977,2658.5,2658.3,0.75794557]
[1739384723178,1.94999,2658.5,2658.4,0.75229]
[1739384723383,1.1977,2658.5,2658.4,0.75229]
[1739384723882,0.5947,2658.5,2658.4,0.75229]
[1739384724180,3.2078,2658.6,2658.5,0.75226]
[1739384724779,0.00564557,2658.8,2658.3,5.09424557]
[1739384724986,0.6033,2659.0,2658.9,0.75215]
[1739384726176,1.35542,2659.0,2658.9,0.75215]
[1739384726375,0.6033,2659.0,2658.9,0.75215]
[1739384726576,0.75217,2658.9,2658.8,0.75216]
[1739384726885,0.6033,2659.0,2658.4,3.7735]
[1739384726886,0.75223,2658.7,2658.6,0.75222]
[1739384727285,2.54923,2658.7,2658.6,0.75222]
[1739384727882,0.75226,2658.6,2658.5,0.75224]
[1739384728986,5.0048,2658.7,2658.3,0.00564557]
[1739384729183,5.75702,2658.7,2658.6,0.75224]
[1739384729389,5.0048,2658.7,2658.6,0.75224]
[1739384729691,5.75701,2658.7,2658.6,0.75224]
[1739384729890,5.0048,2658.7,2658.6,0.75224]
[1739384730092,5.75701,2658.7,2658.6,0.75224]
[1739384730287,5.0048,2658.7,2658.6,0.75224]
[1739384730591,1.30289,2658.8,2658.7,0.75221]
[1739384730983,0.5507,2658.8,2658.7,0.75221]
[1739384731786,0.5507,2658.8,2658.3,0.00564557]
[1739384731990,0.75228,2658.6,2658.5,0.75225]
[1739384732292,0.75229,2658.4,2658.3,0.75795557]
[1739384732688,0.75229,2658.4,2658.3,0.00564557]
[1739384732892,1.31479,2658.4,2658.3,0.00564557]
[1739384733597,1.31479,2658.4,2658.3,0.75796557]
[1739384733892,1.31479,2658.4,2658.3,0.00564557]
[1739384734395,1.31479,2658.4,2658.3,0.75796557]
[1739384734591,1.31479,2658.4,2658.3,0.00564557]
[1739384734789,1.31479,2658.4,2658.3,0.75796557]
[1739384736096,1.31479,2658.4,2658.3,0.00564557]
[1739384737497,1.31479,2658.4,2658.3,0.75796557]
[1739384738195,0.75229,2658.4,2658.3,0.75796557]
[1739384738397,1.33919,2658.4,2658.3,0.75796557]
[1739384739395,1.33919,2658.4,2658.3,0.00564557]
[1739384740298,1.33919,2658.4,2658.3,0.75796557]
[1739384741196,3.13619,2658.4,2658.3,0.00564557]
[1739384741392,5.72439206,2658.4,2657.8,3.2078]
[1739384741693,3.2078,2658.1,2657.5,5.08914]
[1739384741888,0.75245,2657.9,2657.8,0.75244]
[1739384742090,1.797,2657.9,2657.8,3.96024]
[1739384742600,0.37056678,2658.3,2658.2,0.75235]
[1739384743104,0.37056678,2658.3,2657.9,2.48774]
[1739384743105,0.37056678,2658.3,2658.1,0.75236]
[1739384743302,0.37056678,2658.3,2658.2,0.75235]
[1739384743800,6.344,2658.4,2658.3,0.75232]
[1739384744293,0.75233,2658.3,2657.9,0.6067]
[1739384744494,5.5917,2658.4,2657.9,0.6067]
[1739384744697,6.34401,2658.4,2658.3,0.75232]
[1739384745195,5.96321534,2658.4,2657.8,3.2078]
[1739384745396,0.75237,2658.2,2658.1,0.75236]
[1739384745592,2.75541534,2658.4,2658.3,0.75232]
[1739384745790,2.3839,2658.4,2658.2,0.75232]
[1739384745993,0.75233,2658.3,2658.2,0.75232]
[1739384746495,0.7524,2658.1,2658.0,0.75237]
[1739384747994,0.75236,2658.2,2658.1,0.75235]
[1739384749799,5.5917,2658.4,2657.8,5.64933]
[1739384749998,0.75234,2658.3,2658.2,0.75232]
[1739384750502,6.34401,2658.4,2658.3,0.75232]
[1739384751301,3.13621,2658.4,2658.3,0.75232]
[1739384751696,1.33921,2658.4,2658.3,0.75232]
[1739384752004,1.33919,2658.4,2658.3,0.75232]
[1739384752500,0.5869,2658.4,2658.3,0.75232]
[1739384752705,1.33919,2658.4,2658.3,0.75232]
[1739384753603,1.33919,2658.4,2658.1,1.88094]
[1739384753604,0.75227,2658.5,2658.4,0.75229]
[1739384753804,1.34797,2658.5,2658.4,0.75229]
[1739384754404,0.5957,2658.5,2657.9,1.88106]
[1739384754603,0.75236,2658.3,2658.2,0.75232]
[1739384754804,8.42905206,2658.4,2657.8,3.7682]
[1739384755005,0.75242,2658.1,2658.0,0.75238]
[1739384755406,1.1933,2658.2,2657.8,3.7682]
[1739384755705,0.75243,2658.0,2657.9,0.7524]
[1739384756297,5.0038,2658.1,2657.6,0.00564557]
[1739384756501,1.31396,2657.9,2657.8,0.75243]
[1739384762111,1.31393,2657.9,2657.8,0.75243]
[1739384763601,1.31393,2657.9,2657.6,1.88693557]
[1739384763602,0.37141943,2658.0,2657.9,0.75243]
[1739384763802,0.37141943,2658.3,2657.9,0.75243]
[1739384764007,1.12374943,2658.3,2658.2,0.75235]
[1739384764411,0.75233,2658.3,2658.2,0.75235]
[1739384764610,3.2078,2658.4,2658.0,6.90111206]
[1739384764809,3.2078,2658.4,2658.3,0.75232]
[1739384765212,3.2078,2658.4,2658.1,1.88095]
[1739384765213,1.12369943,2658.5,2658.4,0.75229]
[1739384765604,0.37141943,2658.5,2658.4,0.75229]
[1739384765811,1.796,2658.7,2658.3,3.34049206]
[1739384766006,1.796,2658.7,2658.6,0.75224]
[1739384766307,2.54821,2658.7,2658.6,0.75224]
[1739384766506,0.75221,2658.7,2658.6,0.75224]
[1739384766806,1.796,2659.0,2658.7,0.75219]
[1739384767006,0.75221,2658.7,2658.6,0.75221]
[1739384767305,0.75222,2658.7,2658.6,0.75223]
[1739384767509,3.2078,2658.9,2658.3,3.34049206]
[1739384768124,0.75219,2658.8,2658.7,0.75219]
[1739384768416,3.57956076,2658.9,2658.3,3.34049206]
[1739384768609,3.2078,2658.9,2658.3,3.34049206]
[1739384768811,0.7522,2658.8,2658.7,0.75221]
[1739384769210,3.2078,2658.9,2658.8,0.75218]
[1739384769409,3.95995,2658.9,2658.8,0.75218]
[1739384769611,3.2078,2658.9,2658.8,0.75218]
[1739384770214,3.95995,2658.9,2658.8,0.75218]
[1739384770517,3.2078,2658.9,2658.6,5.06459206]
[1739384770713,3.2078,2658.9,2658.8,0.75218]
[1739384772715,0.75215,2658.9,2658.8,0.75218]
[1739384772917,1.33774,2659.0,2658.9,0.75215]
[1739384773621,0.5856,2659.0,2658.9,0.75215]
[1739384773817,0.37116268,2659.1,2658.6,10.15297206]
[1739384774013,0.37116268,2659.1,2659.0,0.75212]
[1739384774516,0.00564557,2659.2,2659.1,0.75209]
[1739384775323,0.37102317,2659.4,2659.3,0.75204]
[1739384775519,0.7519,2659.8,2659.3,4.09253206]
[1739384775822,0.7519,2659.8,2659.7,0.7519]
[1739384776317,4.33070317,2659.9,2659.8,0.7519]
[1739384776714,3.57882317,2659.9,2659.8,0.7519]
[1739384776918,0.75195,2659.6,2659.5,0.00564557]
[1739384777113,3.95975,2659.6,2659.5,0.00564557]
[1739384777722,5.43297317,2659.6,2659.5,0.75762557]
[1739384777911,5.43297317,2659.6,2659.5,0.00564557]
[1739384779225,0.75221,2658.7,2658.1,8.42920206]
[1739384779522,5.75501,2658.8,2658.5,0.75224]
[1739384779725,1.795,2658.7,2658.1,8.42920206]
[1739384779922,1.795,2658.7,2658.6,0.75223]
[1739384780318,2.54721,2658.7,2658.6,0.75223]
[1739384780518,2.54721,2658.7,2658.4,0.00564557]
[1739384780720,2.54721,2658.7,2658.5,0.75224]
[1739384781021,0.75226,2658.5,2658.4,0.00564557]
[1739384781324,3.96006,2658.5,2658.4,0.00564557]
[1739384784327,0.75241,2658.0,2657.8,0.75244]
[1739384784523,2.54741,2658.0,2657.8,0.75244]
[1739384784724,0.5566,2657.9,2657.8,0.75244]
[1739384786821,3.2078,2658.1,2658.0,0.75241]
[1739384787626,1.795,2658.3,2658.2,0.75235]
[1739384789233,2.5473,2658.4,2658.3,0.75232]
[1739384789925,1.795,2658.4,2658.3,0.75232]
[1739384790329,2.54729,2658.4,2658.3,0.75232]
[1739384790529,1.795,2658.4,2658.3,0.75232]
[1739384790729,2.54729,2658.4,2658.3,0.75232]
[1739384790923,1.795,2658.4,2658.3,0.75232]
[1739384791125,2.54729,2658.4,2658.3,0.75232]
[1739384791324,0.75234,2658.3,2658.2,0.75233]
[1739384791933,0.75237,2658.2,2658.1,0.75237]
[1739384792327,0.75233,2658.3,2658.2,0.75232]
[1739384792630,2.54732,2658.4,2658.3,0.75232]
[1739384793235,1.795,2658.4,2658.3,0.75232]
[1739384793626,2.54729,2658.4,2658.3,0.75232]
[1739384793826,1.795,2658.4,2658.3,0.75232]
[1739384794439,2.54728,2658.5,2658.4,0.75227]
[1739384796131,2.54727,2658.5,2658.4,0.75227]
[1739384796735,0.5481,2658.6,2658.4,3.34049206]
[1739384796932,0.5481,2658.6,2658.5,0.75227]
[1739384797433,1.30034,2658.6,2658.5,0.75227]
[1739384797628,1.30034,2658.6,2658.1,6.54829206]
[1739384797629,0.5481,2658.6,2658.1,6.54829206]
[1739384797828,0.75235,2658.3,2658.2,0.75232]
[1739384798232,0.75229,2658.5,2658.4,0.75227]
[1739384800628,2.54729,2658.5,2658.4,0.75227]
[1739384801331,1.795,2658.5,2658.4,0.75227]
[1739384801525,2.54727,2658.5,2658.4,0.75227]
[1739384804338,1.795,2658.5,2658.4,0.75227]
[1739384804532,2.54726,2658.5,2658.4,0.75227]
[1739384804733,0.5481,2658.6,2658.2,1.88088]
[1739384804932,1.35650557,2658.9,2658.8,0.75218]
[1739384805233,2.55180557,2658.9,2658.8,0.75218]
[1739384805532,3.15050557,2658.9,2658.8,0.75218]
[1739384806134,0.75224,2658.7,2658.6,0.7522]
[1739384808438,0.75221,2658.8,2658.7,0.75218]
[1739384808839,2.54621,2658.8,2658.7,0.75218]
[1739384810043,0.75224,2658.7,2658.6,0.75222]
[1739384810841,1.794,2658.8,2658.4,3.34049206]
[1739384811035,0.75223,2658.7,2658.6,0.75221]
[1739384814945,0.7522,2658.8,2658.7,0.75218]
[1739384816042,0.75227,2658.6,2658.5,0.75224]
[1739384816244,0.75224,2658.7,2658.4,3.34049206]
[1739384816448,1.88067,2658.5,2657.8,3.2078]
[1739384816654,0.75247,2657.8,2657.7,0.75249]
[1739384817551,0.75245,2657.9,2657.8,0.75245]
[1739384818453,0.75248,2657.8,2657.7,0.75246]
[1739384819255,0.5818,2657.8,2657.6,0.00564557]
[1739384819444,0.5818,2657.8,2657.6,0.75814557]
[1739384819648,0.75249,2657.7,2657.6,0.00564557]
[1739384821147,0.7526,2657.3,2657.2,0.97747]
[1739384821446,5.0018,2657.3,2657.2,1.7301]
[1739384823543,0.00564557,2657.5,2657.2,0.97747]
[1739384823751,1.79964557,2657.5,2657.4,0.75258]
[1739384824655,0.00564557,2657.5,2657.4,0.75258]
[1739384824858,0.00564557,2657.5,2657.4,3.96038]
[1739384825054,5.0018,2658.0,2657.9,0.75243]
[1739384825650,5.75421,2658.0,2657.9,0.75243]
[1739384826952,0.75247,2657.8,2657.4,6.54829206]
[1739384827151,0.75246,2657.9,2657.7,0.75247]
[1739384827752,0.75246,2657.8,2657.7,0.75247]
[1739384827952,0.7525,2657.7,2657.4,3.34049206]
[1739384828155,0.5987,2657.9,2657.4,3.34049206]
[1739384828456,0.75258,2657.4,2657.3,0.5909]
[1739384828660,0.75258,2657.4,2657.3,0.7526]
[1739384829158,0.7526,2657.3,2657.2,0.97747]
[1739384830050,0.7526,2657.3,2657.0,0.00564557]
[1739384830051,6.0,2657.3,2657.0,0.00564557]
[1739384830252,0.75277,2656.8,2656.2,5.22273206]
[1739384830558,0.75279,2656.7,2656.5,0.75283]
[1739384830758,0.75277,2656.7,2656.4,0.75284]
[1739384830953,3.96064,2656.5,2656.3,0.75287]
[1739384831148,3.2078,2656.5,2656.3,0.75287]
[1739384831350,3.2078,2656.5,2656.3,0.75289]
[1739384831556,0.75284,2656.5,2656.3,0.75289]
[1739384831755,0.75281,2656.6,2656.4,0.75285]
[1739384831956,1.33973557,2656.7,2656.5,0.75283]
[1739384832273,1.33973557,2656.7,2656.3,0.6019]
[1739384832462,1.33973557,2656.7,2656.4,0.75285]
[1739384832463,0.75282,2656.6,2656.4,0.75285]
[1739384832963,0.58694557,2656.7,2656.3,0.6019]
[1739384833167,0.75286,2656.4,2656.2,0.75291]
[1739384833463,1.794,2656.3,2656.1,0.00564557]
[1739384834055,0.75292,2656.2,2656.1,0.00564557]
[1739384834251,3.96072,2656.2,2656.1,0.00564557]
[1739384834860,3.2078,2656.2,2655.6,3.34049206]
[1739384835054,3.2078,2655.9,2655.6,3.34049206]
[1739384835256,1.794,2656.2,2656.1,0.75294]
[1739384836359,2.54694,2656.2,2656.0,0.75295]
[1739384836556,2.54693,2656.2,2656.0,0.75295]
[1739384837049,1.794,2656.2,2656.1,0.75294]
[1739384838562,2.54692,2656.2,2656.1,0.75294]
[1739384838963,1.794,2656.2,2655.9,0.00564557]
[1739384839265,0.00564557,2656.7,2656.0,3.34049206]
[1739384839460,2.3744,2656.6,2656.4,0.75286]
[1739384839663,3.12721,2656.6,2656.4,0.75286]
[1739384839861,0.75285,2656.5,2656.3,0.75287]
[1739384840269,0.75285,2656.5,2656.1,0.5691]
[1739384840560,0.75285,2656.5,2656.3,0.75287]
[1739384841768,0.75283,2656.5,2656.1,0.5691]
[1739384841965,0.75283,2656.5,2656.3,0.75287]
[1739384842161,0.75288,2656.4,2656.3,0.75288]
[1739384842765,2.3744,2656.6,2656.2,0.7529]
[1739384842964,0.75287,2656.4,2656.3,0.75288]
[1739384843464,0.75292,2656.2,2656.1,0.75293]
[1739384843771,3.77,2656.5,2656.1,0.75293]
[1739384844073,0.75291,2656.3,2656.1,0.75292]
[1739384844373,0.75292,2656.2,2656.1,0.75292]
[1739384844865,0.75292,2656.2,2655.9,0.58554557]
[1739384844866,3.77,2656.5,2656.2,0.75291]
[1739384845062,0.75294,2656.2,2656.1,0.75293]
[1739384846370,3.77,2656.5,2655.9,0.58554557]
[1739384846573,0.75291,2656.3,2656.2,0.7529]
[1739384846870,0.75289,2656.4,2656.3,0.75286]
[1739384847067,5.75467,2656.5,2656.4,0.75286]
[1739384847274,0.75292,2656.3,2656.2,0.7529]
[1739384847770,0.75293,2656.2,2656.1,0.75292]
[1739384847970,0.75291,2656.3,2656.2,0.7529]
[1739384848971,0.75287,2656.4,2656.3,0.75286]
[1739384849670,5.0018,2656.5,2656.1,1.88236]
[1739384849872,3.96065,2656.5,2656.4,0.75286]
[1739384851475,0.75286,2656.4,2656.3,1.35806]
[1739384852071,0.75286,2656.4,2656.3,0.6052]
[1739384852371,0.75296,2656.1,2656.0,0.75295]
[1739384852774,0.5653,2656.4,2655.9,1.19074557]
[1739384853072,0.75292,2656.2,2656.1,0.75291]
[1739384854778,0.5653,2656.4,2655.9,1.19074557]
[1739384854973,0.75291,2656.3,2656.2,0.7529]
[1739384855873,5.0018,2656.5,2656.1,1.88237]
[1739384856178,5.75466,2656.5,2656.4,0.75286]
[1739384858074,0.75282,2656.6,2656.5,0.7528]
[1739384858274,2.55145557,2656.7,2656.6,0.7528]
[1739384858676,0.75283,2656.6,2656.5,0.75281]
[1739384858888,1.79864557,2656.7,2656.1,1.88233]
[1739384859184,0.75286,2656.5,2656.4,0.75284]